Cogmind - Beta 13 --- EXPLORER MODE // 2024.04.07 @ 00:25:40 Player: devwitch Result: Destroyed by S-27 Virus with Autogun Performance ------------- Evolutions (5) 2500 Regions Visited (9) 1800 Robots Destroyed (22) 110 Value Destroyed (539) 539 Prototype IDs (2) 40 Alien Tech Used (0) 0 Bonus (500) 500 TOTAL SCORE: 5489 Bonus ------- Entered DSFs 500 Cogmind --------- Core Integrity 0/1000 Matter 300/300 Energy 100/100 System Corruption 0% Temperature Cool (0) Movement Core (200) Ox3 Location -5/Upper Caves Parts ------- > --- POWER (3) -------- (None) > --- PROPULSION (6) --- (None) > --- UTILITY (7) ------ Medium Storage Unit Advanced Terrain Scan Processor > --- WEAPON (2) ------- (None) > --- INVENTORY (10) --- VSS Leg VTOL Module Cesium-ion Thruster Improved Datajack Improved Datajack Peak State ------------ > --- POWER ------------ Light Ion Engine Micro Nuclear Core Angular Momentum Engine > --- PROPULSION ------- Carbon-fiber Leg Titanium Leg Improved Carbon-fiber Leg Improved Titanium Leg Improved Titanium Leg Flexi-carbon Leg > --- UTILITY ---------- Medium Storage Unit Improved Terrain Scanner Advanced Terrain Scan Processor Transport Network Coupler ECM Suite Utility Shielding Light Armor Plating > --- WEAPON ----------- Light Assault Rifle Remote Datajack > --- INVENTORY -------- Aluminum Leg Carbon-fiber Leg VSS Leg VTOL Module Cesium-ion Thruster Improved Heat Sink Rocket Launcher Improved Datajack Improved Datajack Mining Claw [Rating: 52] Favorites ----------- Power Light Ion Engine Engine Light Ion Engine Power Core Micro Nuclear Core Propulsion Aluminum Leg Leg Aluminum Leg Utility Transport Network Coupler Device ECM Suite Storage Medium Storage Unit Processor Transport Network Coupler Protection Utility Shielding Weapon Light Assault Rifle Ballistic Gun Light Assault Rifle Launcher Rocket Launcher Special Weapon Remote Datajack Slashing Weapon Mining Claw Special Melee Weapon Improved Datajack Build | -11 -10 -10 -9 -8 -7 -7 -6 -5 -5 ------- Run | Yrd Mat Min Mat Mat Fac DSF Fac Fac Upp Slots Evolved 11 | . 1 . 2 2 2 . 2 2 . Power 2 | . . . 1 . . . . 1 . Propulsion 4 | . . . 1 1 1 . . 1 . Utility 5 | . 1 . . 1 1 . 2 . . Weapon . | . . . . . . . . . . Parts Attached 38 | 5 1 2 3 5 2 7 2 7 4 Power 6 | 1 . . 1 . 1 1 1 1 . Engine 5 | 1 . . 1 . 1 . 1 1 . Core 1 | . . . . . . 1 . . . Reactor . | . . . . . . . . . . Propulsion 16 | 2 . . 1 3 . 5 . 3 2 Treads . | . . . . . . . . . . Leg 16 | 2 . . 1 3 . 5 . 3 2 Wheel . | . . . . . . . . . . Hover . | . . . . . . . . . . Flight . | . . . . . . . . . . Utility 9 | 2 1 . . 2 . 1 1 1 1 Device 4 | 1 . . . 1 . 1 . . 1 Storage 1 | . 1 . . . . . . . . Processor 2 | 1 . . . . . . 1 . . Hackware . | . . . . . . . . . . Protection 2 | . . . . 1 . . . 1 . Artifact . | . . . . . . . . . . Weapon 7 | . . 2 1 . 1 . . 2 1 Energy Gun . | . . . . . . . . . . Energy Cannon . | . . . . . . . . . . Ballistic Gun 2 | . . 1 1 . . . . . . Ballistic Cannon . | . . . . . . . . . . Launcher 2 | . . 1 . . . . . 1 . Special Weapon 1 | . . . . . . . . 1 . Impact Weapon . | . . . . . . . . . . Slashing Weapon 1 | . . . . . . . . . 1 Piercing Weapon . | . . . . . . . . . . Special Melee Weapon 1 | . . . . . 1 . . . . Unidentified Prototypes . | . . . . . . . . . . Parts Lost 24 | . . . . 3 . . . 3 18 Power 5 | . . . . 2 . . . . 3 Propulsion 8 | . . . . . . . . . 8 Utility 6 | . . . . . . . . 2 4 Weapon 5 | . . . . 1 . . . 1 3 Highest Loss Streak 12 | . . . . 3 . . . 2 12 To Critical Strikes . | . . . . . . . . . . Average Slot Usage (%) 88 | . 75 97 97 98 . 89 92 94 68 Engine 10 | . 12 12 20 14 . 7 6 10 5 Core 2 | . . . . . . 3 6 5 3 Leg 27 | . 25 25 27 32 . 34 31 32 19 Device 9 | . 12 12 10 8 . 8 12 9 9 Storage 7 | . 12 12 10 8 . 7 6 5 5 Processor 10 | . 12 12 10 8 . 7 11 11 10 Protection 5 | . . . . 8 . 7 6 9 4 Ballistic Gun 6 | . . 12 20 15 . 7 6 3 . Launcher 1 | . . 9 . . . . . 1 1 Special Weapon 1 | . . . . . . . . 2 3 Special Melee Weapon 1 | . . . . . . 7 6 2 . Naked Turns . | . . . . . . . . . . Heaviest Build 45 | 4 14 19 19 20 17 25 35 45 43 Greatest Support 110 | 20 20 20 30 55 55 82 82 110 110 Greatest Overweight (x) 5 | . . . . . . . . . 5 Average Overweight (x) . | . . . . . . . . . . Largest Inventory Capacity 10 | 5 10 10 10 10 10 10 10 10 10 Average Capacity 9 | 5 10 10 10 10 10 10 10 10 10 Most Carried 10 | 5 5 6 8 10 9 10 10 10 8 Average Carried 7 | 3 4 5 5 9 8 9 9 9 5 Final Capacity 10 | 5 10 10 10 10 10 10 10 10 10 Final Carried 10 | 5 5 6 8 10 8 9 10 9 5 Class Distribution -------------------- 80% | Hacker-Mutant 16% | Hacker-Assassin 3% | Hacker-Skirmisher Dominant Class ---------------- Hacker-Mutant | -10/Materials Hacker-Mutant | -10/Mines Hacker-Mutant | -9/Materials Hacker-Mutant | -8/Materials Hacker-Mutant | -7/Factory Hacker-Mutant | -7/DSF Hacker-Assassin | -6/Factory Hacker-Assassin | -5/Factory Hacker-Mutant | -5/Upper Caves Resources | -11 -10 -10 -9 -8 -7 -7 -6 -5 -5 ----------- Run | Yrd Mat Min Mat Mat Fac DSF Fac Fac Upp Matter Collected 761 | 250 10 32 . 108 . . 91 140 130 Remotely . | . . . . . . . . . . Salvage Created 396 | . . 21 . 117 . . . 219 39 Parts 30 | . . 3 . 7 . . . 19 1 Haulers Intercepted . | . . . . . . . . . . Recyclers Shooed 2 | . . . . . . . . 2 . Parts Field Recycled . | . . . . . . . . . . Retrieved Matter . | . . . . . . . . . . Parts Self-Destructed . | . . . . . . . . . . Prevented . | . . . . . . . . . . Kills | -11 -10 -10 -9 -8 -7 -7 -6 -5 -5 ------- Run | Yrd Mat Min Mat Mat Fac DSF Fac Fac Upp Combat Hostiles Destroyed 14 | . . 2 . 2 . . . 9 1 Guns 3 | . . 1 . 2 . . . . . AOE 11 | . . 1 . . . . . 9 1 Classes Destroyed 4 | . . 1 . 1 . . . 2 . Worker 5 | . . . . . . . . 5 . Builder 3 | . . . . . . . . 3 . Swarmer 8 | . . 2 . . . . . 6 . Grunt 6 | . . . . 2 . . . 3 1 Best Kill Streak 14 | . . 2 . 2 . . . 14 1 Combat Bots Only 6 | . . 2 . 2 . . . 6 1 Max Kills in Single Turn 4 | . . 2 . 1 . . . 4 1 Gunslinging . | . . . . . . . . . . Exploded 2 | . . 1 . . . . . 2 1 Melee . | . . . . . . . . . . Uniques/NPCs Destroyed . | . . . . . . . . . . Combat | -11 -10 -10 -9 -8 -7 -7 -6 -5 -5 -------- Run | Yrd Mat Min Mat Mat Fac DSF Fac Fac Upp Hostile Shots Fired 494 | . 7 5 9 81 . 3 . 79 310 Missed 169 | . . 2 3 31 . 2 . 37 94 Damage Taken 3447 | . 53 10 41 516 . 26 13 519 2269 Core 1148 | . 21 3 . 106 . . 13 22 983 Absorbed by Shields . | . . . . . . . . . . Redirected to Shielding 51 | . . . . 10 . 8 . 7 26 Ignored by Resistances 2050 | . 34 9 25 307 . 15 7 308 1345 Core Remaining (%) 94 | 100 . 90 100 80 . 100 98 . . Volleys Fired 37 | . . 1 . 14 . . . 16 6 Largest 2 | . . 2 . 2 . . . 1 1 Hottest 53 | . . 53 . 40 . . . 33 33 Shots Fired 52 | . . 2 . 28 . . . 16 6 Gun 29 | . . 1 . 28 . . . . . Cannon . | . . . . . . . . . . Launcher 22 | . . 1 . . . . . 16 5 Special 1 | . . . . . . . . . 1 Kinetic 29 | . . 1 . 28 . . . . . Thermal . | . . . . . . . . . . Explosive 22 | . . 1 . . . . . 16 5 Electromagnetic . | . . . . . . . . . . Robot Hit Streak 25 | . . 1 . 23 . . . 25 2 Robot Miss Streak 1 | . . . . 1 . . . 1 1 Penetration Max . | . . . . . . . . . . Secondary Targets . | . . . . . . . . . . Shots Hit Robots 43 | . . 1 . 25 . . . 11 6 Core Hits 48 | . . 3 . 11 . . . 31 3 Critical Kills . | . . . . . . . . . . Critical Parts Destroyed . | . . . . . . . . . . Critical Strikes . | . . . . . . . . . . Melee Attacks 5 | . . . . . . . . . 5 Impact . | . . . . . . . . . . Slashing 5 | . . . . . . . . . 5 Piercing . | . . . . . . . . . . Sneak Attacks . | . . . . . . . . . . Combat Hostiles . | . . . . . . . . . . Follow-up Attacks . | . . . . . . . . . . Damage Inflicted 1883 | . . 24 . 203 . . . 1416 240 Guns 212 | . . 9 . 203 . . . . . Cannons . | . . . . . . . . . . Explosions 1571 | . . 15 . . . . . 1416 140 Melee 99 | . . . . . . . . . 99 Ramming 1 | . . . . . . . . . 1 Kinetic 212 | . . 9 . 203 . . . . . Thermal . | . . . . . . . . . . Explosive 1571 | . . 15 . . . . . 1416 140 Electromagnetic . | . . . . . . . . . . Impact . | . . . . . . . . . . Slashing 99 | . . . . . . . . . 99 Piercing . | . . . . . . . . . . Highest Corruption 2 | . . . 2 . . . . . . Average Corruption 1 | . . . 1 . . . . . . Corruption Purged . | . . . . . . . . . . Corruption Blocked . | . . . . . . . . . . Overload Shots . | . . . . . . . . . . Overflow Damage 48 | . . . . . . . . 48 . Projectiles . | . . . . . . . . . . Explosions 48 | . . . . . . . . 48 . Melee . | . . . . . . . . . . Knockbacks . | . . . . . . . . . . Impact . | . . . . . . . . . . Kinetic . | . . . . . . . . . . Secondary . | . . . . . . . . . . Self-Inflicted Damage 30 | . . . . . . . . . 30 Shots 1 | . . . . . . . . . 1 Rammed 1 | . . . . . . . . . 1 Targets Rammed 1 | . . . . . . . . . 1 Kicked . | . . . . . . . . . . Crushed . | . . . . . . . . . . Highest Temperature 28 | . . 12 . 15 . . . 28 . Average Temperature 10 | . . 9 . 8 . . . 12 . Received Heat Transfer 1215 | . 51 . 36 423 . . . 216 489 Siege Activations . | . . . . . . . . . . Robots Corrupted . | . . . . . . . . . . Combat Hostiles . | . . . . . . . . . . Parts Fried . | . . . . . . . . . . Impact Corruptions . | . . . . . . . . . . Robots Melted . | . . . . . . . . . . Combat Hostiles . | . . . . . . . . . . Parts Melted . | . . . . . . . . . . Heat Transferred . | . . . . . . . . . . Parts Sabotaged . | . . . . . . . . . . Parts Stolen . | . . . . . . . . . . Parts Stripped . | . . . . . . . . . . Power Chain Reactions . | . . . . . . . . . . Alert | -11 -10 -10 -9 -8 -7 -7 -6 -5 -5 ------- Run | Yrd Mat Min Mat Mat Fac DSF Fac Fac Upp Peak Influence 352 | . 16 66 18 117 31 16 11 352 . Initial 28 | . . 4 18 4 28 16 6 3 . Average 35 | . 6 55 18 42 28 16 7 50 . Maximum Alert Level 1 | . . . . . . . . 1 . Low Security (%) 96 | 100 100 100 100 100 100 100 100 88 . Level 1 3 | . . . . . . . . 11 . Level 2 . | . . . . . . . . . . Level 3 . | . . . . . . . . . . Level 4 . | . . . . . . . . . . Level 5 . | . . . . . . . . . . High Security . | . . . . . . . . . . Max Security . | . . . . . . . . . . Squads Dispatched 4 | . . . . 1 . . . 3 . Investigation . | . . . . . . . . . . Extermination 1 | . . . . . . . . 1 . Reinforcement 3 | . . . . 1 . . . 2 . Assault . | . . . . . . . . . . Garrison . | . . . . . . . . . . Intercept . | . . . . . . . . . . Searches Triggered . | . . . . . . . . . . Construction Impeded . | . . . . . . . . . . Haulers Reinforced . | . . . . . . . . . . Active Scanning Responses . | . . . . . . . . . . Cargo Convoy Interrupts . | . . . . . . . . . . Stealth | -11 -10 -10 -9 -8 -7 -7 -6 -5 -5 --------- Run | Yrd Mat Min Mat Mat Fac DSF Fac Fac Upp Distress Signals 2 | . 1 . . . . . . 1 . Communications Jammed . | . . . . . . . . . . Distress Signals . | . . . . . . . . . . Times Spotted 61 | . 3 2 6 13 . . . 19 18 Peak Tracking Total 8 | . 3 2 4 8 . 1 . 6 8 Tactical Retreats 9 | . . . . 1 . 1 . 3 4 Traps | -11 -10 -10 -9 -8 -7 -7 -6 -5 -5 ------- Run | Yrd Mat Min Mat Mat Fac DSF Fac Fac Upp Traps Triggered 3 | . . . 2 . . . 1 . . Indirectly . | . . . . . . . . . . Trap Hack Attempts . | . . . . . . . . . . Triggered . | . . . . . . . . . . Disarmed . | . . . . . . . . . . Reprogrammed . | . . . . . . . . . . Reused . | . . . . . . . . . . Traps Extracted . | . . . . . . . . . . Installed . | . . . . . . . . . . Triggered . | . . . . . . . . . . Machines | -11 -10 -10 -9 -8 -7 -7 -6 -5 -5 ---------- Run | Yrd Mat Min Mat Mat Fac DSF Fac Fac Upp Machines Disabled 4 | . . 1 . . . . . 3 . Max in Single Turn 1 | . . 1 . . . . . 1 . Machines Repaired . | . . . . . . . . . . Machines Dismantled . | . . . . . . . . . . Machines Sabotaged . | . . . . . . . . . . Overloaded Fab Kills . | . . . . . . . . . . Hacking | -11 -10 -10 -9 -8 -7 -7 -6 -5 -5 --------- Run | Yrd Mat Min Mat Mat Fac DSF Fac Fac Upp Machines Accessed 8 | . 2 . . 3 1 . 1 1 . Terminals 8 | . 2 . . 3 1 . 1 1 . Fabricators . | . . . . . . . . . . Repair Stations . | . . . . . . . . . . Recycling Units . | . . . . . . . . . . Scanalyzers . | . . . . . . . . . . Garrison Access . | . . . . . . . . . . Total Hacks 28 | . 6 . . 16 1 . 2 3 . Successful 15 | . 5 . . 8 1 . 1 . . Failed 13 | . 1 . . 8 . . 1 3 . Catastrophic 1 | . . . . . . . . 1 . Database Lockouts . | . . . . . . . . . . Manual . | . . . . . . . . . . Terminals 28 | . 6 . . 16 1 . 2 3 . Fabricators . | . . . . . . . . . . Repair Stations . | . . . . . . . . . . Recycling Units . | . . . . . . . . . . Scanalyzers . | . . . . . . . . . . Garrison Access . | . . . . . . . . . . Terminal Hacks 15 | . 5 . . 8 1 . 1 . . Robot Analysis 3 | . 1 . . 1 . . 1 . . Prototype ID Bank 1 | . . . . 1 . . . . . Open DSF 1 | . . . . . 1 . . . . Emergency Access Points 1 | . 1 . . . . . . . . Locate Traps 1 | . 1 . . . . . . . . Dispatch Records 2 | . . . . 2 . . . . . Maintenance Status 2 | . 1 . . 1 . . . . . Patrol Status 1 | . 1 . . . . . . . . Reinforcement Status 1 | . . . . 1 . . . . . Hauler Manifests 1 | . . . . 1 . . . . . Zone Layout 1 | . . . . 1 . . . . . Fabricator Hacks . | . . . . . . . . . . Repair Station Hacks . | . . . . . . . . . . Recycling Unit Hacks . | . . . . . . . . . . Scanalyzer . | . . . . . . . . . . Garrison Access Hacks . | . . . . . . . . . . Unauthorized Hacks . | . . . . . . . . . . Terminals . | . . . . . . . . . . Fabricators . | . . . . . . . . . . Repair Stations . | . . . . . . . . . . Recycling Units . | . . . . . . . . . . Scanalyzers . | . . . . . . . . . . Garrison Access . | . . . . . . . . . . Data Cores Recovered . | . . . . . . . . . . Used . | . . . . . . . . . . Hacking Detections 5 | . 1 . . 2 . . 1 1 . Full Trace Events 1 | . . . . 1 . . . . . Feedback Events . | . . . . . . . . . . Feedback Blocked . | . . . . . . . . . . Robot Schematics Acquired . | . . . . . . . . . . Robots Built . | . . . . . . . . . . Authchips . | . . . . . . . . . . Time . | . . . . . . . . . . Total Robot Build Rating . | . . . . . . . . . . Part Schematics Acquired . | . . . . . . . . . . Parts Built . | . . . . . . . . . . Authchips . | . . . . . . . . . . Time . | . . . . . . . . . . Total Part Build Rating . | . . . . . . . . . . Parts Repaired . | . . . . . . . . . . Time . | . . . . . . . . . . Parts Recycled . | . . . . . . . . . . Recycled Matter . | . . . . . . . . . . Retrieved Matter . | . . . . . . . . . . Retrieved Components . | . . . . . . . . . . Parts Scanalyzed . | . . . . . . . . . . Part Schematics Acquired . | . . . . . . . . . . Parts Damaged . | . . . . . . . . . . Bothacking | -11 -10 -10 -9 -8 -7 -7 -6 -5 -5 ------------ Run | Yrd Mat Min Mat Mat Fac DSF Fac Fac Upp Used RIF Installer . | . . . . . . . . . . Robots Hacked 1 | . . . . . . . . . 1 Non-combat . | . . . . . . . . . . Combat 1 | . . . . . . . . . 1 Robot Hacks Applied 1 | . . . . . . . . . 1 parse_system 1 | . . . . . . . . . 1 Relay Couplers Released . | . . . . . . . . . . Fabnet Peak Effective % . | . . . . . . . . . . Robots Rewired . | . . . . . . . . . . Allies Hacked . | . . . . . . . . . . Hacks Repelled . | . . . . . . . . . . Allies | -11 -10 -10 -9 -8 -7 -7 -6 -5 -5 -------- Run | Yrd Mat Min Mat Mat Fac DSF Fac Fac Upp Total Allies . | . . . . . . . . . . Largest Group . | . . . . . . . . . . Highest-Rated Group . | . . . . . . . . . . Highest-Rated Ally . | . . . . . . . . . . Total Orders . | . . . . . . . . . . Ally Attacks . | . . . . . . . . . . Total Damage . | . . . . . . . . . . Kills . | . . . . . . . . . . Allies Corrupted . | . . . . . . . . . . Allies Melted . | . . . . . . . . . . Intel | -11 -10 -10 -9 -8 -7 -7 -6 -5 -5 ------- Run | Yrd Mat Min Mat Mat Fac DSF Fac Fac Upp Robot Analysis Total 3 | . 1 . . 1 . . 1 . . Derelict Logs Recovered 3 | . . 2 . . . . . . 1 Drone Launches . | . . . . . . . . . . Drone Recoveries . | . . . . . . . . . . Exploration | -11 -10 -10 -9 -8 -7 -7 -6 -5 -5 ------------- Run | Yrd Mat Min Mat Mat Fac DSF Fac Fac Upp Turns Passed 2480 | 144 161 315 157 384 7 78 132 591 511 Spaces Moved 1858 | 113 133 257 126 282 5 49 104 449 340 Core 49 | 6 . . . . . . . . 43 Treads . | . . . . . . . . . . Legs 1809 | 107 133 257 126 282 5 49 104 449 297 Wheels . | . . . . . . . . . . Hover . | . . . . . . . . . . Flight . | . . . . . . . . . . Fastest Speed 50 | 50 120 120 120 120 120 116 118 118 123 Average Speed 124 | 116 120 120 120 120 120 117 118 122 140 Slowest Speed 300 | 120 120 120 120 120 120 122 118 125 300 Overloaded Moves . | . . . . . . . . . . Propulsion Burnouts . | . . . . . . . . . . Robots Hopped . | . . . . . . . . . . Cave-ins Triggered . | . . . . . . . . . . Exploration Rate (%) 27 | 5 22 58 13 31 . 45 2 13 55 Regions Visited 9 Branch Regions 2 Pre-discovered Areas . | . . . . . . . . . . Known Exits Taken 8 | 1 1 1 1 1 1 . 1 1 . Unknown Exits Taken . | . . . . . . . . . . Scrap Searched 1 | . . . . . . . . . 1 Spaces Dug . | . . . . . . . . . . Terrain Destroyed 107 | . . 8 . . . . . 45 54 Melee . | . . . . . . . . . . Projectile . | . . . . . . . . . . AOE 107 | . . 8 . . . . . 45 54 Terrain Rammed . | . . . . . . . . . . Walls Destroyed . | . . . . . . . . . . Machines Disabled . | . . . . . . . . . . Actions | -11 -10 -10 -9 -8 -7 -7 -6 -5 -5 --------- Run | Yrd Mat Min Mat Mat Fac DSF Fac Fac Upp Total 1969 | 123 134 262 131 305 6 68 112 472 356 Wait 17 | . . . . . . 10 7 . . Move 1849 | 112 132 256 125 281 4 48 103 448 340 Hop . | . . . . . . . . . . Pick Up 16 | 6 1 3 3 3 . . . . . Fast Attach 11 | 4 . . 1 1 . 3 1 1 . Attach 16 | 1 1 2 1 1 2 . . 4 4 Detach 1 | . . . . . . . . 1 . Swap 11 | . . . 1 3 . 4 1 2 . Drop 5 | . . . . 2 . 3 . . . Fire 37 | . . 1 . 14 . . . 16 6 Melee 5 | . . . . . . . . . 5 Ram 1 | . . . . . . . . . 1 Kick . | . . . . . . . . . . Crush . | . . . . . . . . . . Escape Stasis . | . . . . . . . . . . Rewire . | . . . . . . . . . . Trap . | . . . . . . . . . . Miscellaneous . | . . . . . . . . . . Route ------- -11/Scrapyard -10/Materials -10/Mines -9/Materials -8/Materials -7/Factory -7/DSF -6/Factory -5/Factory -5/Upper Caves History --------- Turn | Location | Event 4 | -11/Scrapyard | Identified exit to Materials 4 | -11/Scrapyard | Discovered exit to Materials (range 15) 145 | -11/Scrapyard | Entered Materials 145 | -10/Materials | Evolved 1 slot: Utility x1 275 | -10/Materials | Identified exit to Mines 275 | -10/Materials | Discovered exit to Mines (range 13) 306 | -10/Materials | Entered Mines 327 | -10/Mines | Build established: Hacker-Mutant 343 | -10/Mines | Received a Rocket Launcher from a helpful Derelict 499 | -10/Mines | Learned Materials stockpile data 521 | -10/Mines | Learned 4 Materials zone layouts 603 | -10/Mines | Identified exit to Materials 603 | -10/Mines | Discovered exit to Materials (range 9) 621 | -10/Mines | Entered Materials 621 | -9/Materials | Evolved 2 slots: Power x1, Propulsion x1 622 | -9/Materials | Identified exit to Materials 778 | -9/Materials | Entered another Materials area 778 | -8/Materials | Evolved 2 slots: Propulsion x1, Utility x1 1146 | -8/Materials | Identified exit to Factory 1146 | -8/Materials | Discovered exit to Factory (range 8) 1162 | -8/Materials | Entered Factory 1162 | -7/Factory | Evolved 2 slots: Propulsion x1, Utility x1 1168 | -7/Factory | Identified exit to DSF 1169 | -7/Factory | Entered DSF 1187 | -7/DSF | Lost 3 parts (2p1w) 1233 | -7/DSF | Identified exit to Factory 1233 | -7/DSF | Discovered exit to Factory (range 12) 1246 | -7/DSF | Additional patrols routed to DSF 1247 | -7/DSF | Entered Factory 1247 | -6/Factory | Evolved 2 slots: Utility x2 1347 | -6/Factory | Identified exit to Factory 1347 | -6/Factory | Discovered exit to Factory (range 15) 1379 | -6/Factory | Entered another Factory area 1379 | -5/Factory | Evolved 2 slots: Power x1, Propulsion x1 1559 | -5/Factory | Build established: Hacker-Assassin 1960 | -5/Factory | Identified exit to Upper Caves 1960 | -5/Factory | Discovered exit to Upper Caves (range 6) 1970 | -5/Factory | Entered Upper Caves 2048 | -5/Upper Caves | Build established: Hacker-Mutant 2113 | -5/Upper Caves | Lost 3 parts (1p1n1w) 2178 | -5/Upper Caves | Lost 3 parts (3n) 2443 | -5/Upper Caves | Core integrity fell below 50% 2462 | -5/Upper Caves | Core integrity fell below 20% 2481 | -5/Upper Caves | Destroyed by S-27 Virus with Autogun Last Messages --------------- 02403_ Critical hit (Burn: +37). 02405_ Penetrated by Slug. 02405_ Imp. Heat Sink destroyed. 02406_ Acquired 37 matter. 02407_ Slug penetrates Wall. 02415_ ECM Suite destroyed. 02416_ Acquired 67 matter. 02420_ Critical hit (Burn: +37). 02437_ Slug penetrates G-50 Soldier. 02437_ Penetrated by Slug. 02442_ Mining Claw destroyed. 02444_ Slammed into S-27 Virus. 02449_ S-27 Virus destroyed. 02459_ Penetrated by Slug. 02459_ Slug penetrates S-27 Virus. 02460_ Penetrated by Slug. 02468_ Acquired derelict log, extracted data. Data stored: Warlord entrances (x1). 02468_ Slug penetrates Wall. 02468_ Transport Network Coupler destroyed. Map ----- +----------------------------------------------------+ | ????????????????????????????????????????????????# | | ????????????????????????????????????????????????# | | ????????????????????????????????????????????????# | | ????????????????????????????????????????????????## | | ?????????????????????????????????????????????????? | | ?????????????????????????????????????????????????? | | ??????????????????????????#"""???????????????????? | | ??????????????????????????? ######?###?????????? | | ????????????????????????????# # ### #####?????? | | ?????????????????????????##### ##????? | | ?????????????????????#???# ##???? | | ????????????????????## ??# = #???? | | ?????????????? ## ### [%* #???? | | ?????????????? % #???? | | ?????????????? ### #???? | | ??????????????# ### ##?# ##??## | | ???????????????# ???# #?## #???# | | ???????????????# ???# ### ### #??## | | ???????????????# ???# #?# ##?## | | ???????????????# ??# #?# #### ! | | ???????????????# ??# #?## ## ! | | ???????????????# #?#ss#??## "%" | | ???????????????# ##s ##??# ### | | ???????????????# #??# #?# | | ???????????????????### ##??##### #?? | | ?????????????????????# @ ##???????# #?? | | ?????????????????????# ##????????# #? | | ?????????????????????# ##?????????### | | ?????????????????????# ###????????????# # | | ?????????????????????# ??????????????? # | | ????????????????????? ??????????????? # ## | | ???????????????????? ??????????????####### # #? | | ??????????????????? ?????????????????????### #? | | ??????????????????# ???????????????????????? #? | | ??????????????????# ????????????????????????? ? | | ??????????????????###????????????????????????? ? | | ?????????????????????????????????????????????? ?? | | ?????????????????????????????????????????????????? | | ?????????????????????????????????????????????????? | | ?????????????????????????????????????????????????? | | ?????????????????????????????????????????????????? | | ?????????????????????????????????????????????????? | | ?????????????????????????????????????????????????? | | ?????????????????????????????????????????????????? | | ?????????????????????????????????????????????????? | | ?????????????????????????????????????????????????? | | ?????????????????????????????????????????????????? | | ?????????????????????????????????????????????????? | | ?????????????????????????????????????????????????? | | ?????????????????????????????????????????????????? | +----------------------------------------------------+ Best States ------------- Heat Dissipation 54 Energy Generation 33 Energy Capacity 375 Matter Stores 300 Matter Capacity 300 Sight Range 16 Terrain Scan Range 16 Terrain Scan Density 210 ECM Strength 1 Armor Coverage 150 Resistance: KI 35 Resistance: TH 35 Resistance: EX 35 Resistance: EM 35 Resistance: I 35 Resistance: S 35 Resistance: P 35 Utility Shielding 33 Evasion (%) 55 Offensive Hacking 20 Item Schematics ----------------- None Robot Schematics ------------------ None Fabricated ------------ Nothing Alien Tech Used ----------------- None Achievements -------------- Armchair Analyst Omniscient Cartographer Challenges ------------ None Game ------ Seed SalvageHoverPurifier Manual? 0 Play Time 00:43:09 Cumulative 13.2 hours Start 2024.04.06 @ 22:33:15 End 2024.04.07 @ 00:25:40 Sessions 3 Manual Loads 0 Difficulty Explorer Special Mode None Game No. 26 Rogue 0 Adventurer 0 Explorer 26 Win Type - Total 0 Types 0/0/0/0/0/0/0/0/0 Lore% 21 Gallery% 18 Achievement% 18 Wizard Run 0 Options --------- Layout 1 ASCII 0 Keyboard 1 Movement Arrows Keybinds 0 Fullscreen 1 Font 24/Smallcaps Map View 50x35 Zoom Use 0% Tactical HUD 1 Map Filters NONE Filters NONE Steam 1 RUN: 5b93a53c-0c5f-4341-924a-22bae380f9cb